[Event "12th New York International 2019"]
[Site "New York"]
[Date "2019.07.10"]
[Round "1.1"]
[White "Zherebukh, Yaroslav"]
[Black "Zeltsan, Joseph"]
[Result "1-0"]
[ECO "A14"]
[WhiteElo "2628"]
[BlackElo "2186"]
[Annotator "ChessBase"]
[PlyCount "55"]
[EventDate "2019.07.11"]
[EventType "swiss"]
[EventCountry "USA"]
[SourceTitle "playchess.com"]
[Source "ChessBase"]
[SourceQuality "1"]
[TimeControl "5400+30"]

1. Nf3 {[%emt 0:00:00]} Nf6 {[%emt 0:00:00]} 2. g3 {[%emt 0:00:01]} e6 {[%emt 0:00:00]} 3. Bg2 {[%emt 0:00:04]} d5 {[%emt 0:00:07]} 4. O-O {[%emt 0:00:22]} Be7 {[%emt 0:00:33]} 5. c4 {[%emt 0:00:13]} O-O {[%emt 0:00:06]} 6. b3 {[%emt 0:00:07]} b6 {[%emt 0:01:08]} 7. Bb2 {[%emt 0:00:06]} Bb7 {[%emt 0:00:31]} 8. e3 {[%emt 0:00:10]} Nbd7 {[%emt 0:12:50]} 9. Nc3 {[%emt 0:00:16]} a5 {[%emt 0:06:48]} 10. d4 {[%emt 0:00:41]} Bb4 {[%emt 0:00:36]} 11. Rc1 {[%emt 0:02:00]} c6 {[%emt 0:03:25]} 12. Ne2 {[%emt 0:02:03]} Bd6 {[%emt 0:01:10]} 13. Ne5 {[%emt 0:03:09]} Rc8 {[%emt 0:08:48]} 14. Nf4 {[%emt 0:00:04]} Qe7 {[%emt 0:00:15]} 15. Rc2 {[%emt 0:06:04]} Nb8 {[%emt 0:19:22]} 16. Qc1 {[%emt 0:00:41]} Na6 {[%emt 0:03:59]} 17. Ned3 {[%emt 0:02:32]} Rfe8 {[%emt 0:09:55]} 18. Rd1 {[%emt 0:00:42]} h6 {[%emt 0:06:02]} 19. a3 {[%emt 0:03:47]} Nd7 {[%emt 0:00:33]} 20. e4 {[%emt 0:02:28]} dxe4 {[%emt 0:05:48]} 21. Bxe4 {[%emt 0:01:28]} e5 {[%emt 0:00:05]} 22. dxe5 {[%emt 0:00:16]} Nxe5 {[%emt 0:00:07]} 23. Re2 {[%emt 0:07:03]} Qc7 {[%emt 0:08:55]} 24. Rde1 {[%emt 0:03:09]} Nxd3 {[%emt 0:03:09]} 25. Nxd3 {[%emt 0:05:49]} Re6 {[%emt 0:00:08]} 26. Qc3 {[%emt 0:00:36]} Bf8 {[%emt 0:06:30]} 27. Nf4 {[%emt 0:00:32]} Rd6 {[%emt 0:00:39]} 28. Bf5 {[%emt 0:01:06]} 1-0

[Event "12th New York International 2019"]
[Site "New York"]
[Date "2019.07.10"]
[Round "1.2"]
[White "Grasso, David"]
[Black "Khamrakulov, Djurabek"]
[Result "1/2-1/2"]
[ECO "B12"]
[WhiteElo "2170"]
[BlackElo "2506"]
[Annotator "RC"]
[PlyCount "60"]
[EventDate "2019.07.11"]
[EventType "swiss"]
[EventCountry "USA"]
[TimeControl "5400+30"]

1. e4 {[%emt 0:00:00]} c6 {[%emt 0:00:00]} 2. d4 {[%emt 0:00:00]} d5 {[%emt 0:00:00]} 3. e5 {[%emt 0:00:00]} Bf5 {[%emt 0:00:00]} 4. h4 {[%emt 0:00:00]} h6 {[%emt 0:00:00]} 5. g4 {[%emt 0:00:20]} Be4 {[%emt 0:00:00]} 6. f3 {[%emt 0:00:25]} Bh7 {[%emt 0:00:00]} 7. e6 {[%emt 0:02:37]} Qd6 {[%emt 0:00:00]} 8. exf7+ {[%emt 0:01:13]} Kxf7 {[%emt 0:00:00]} 9. f4 {[%emt 0:05:04]} Nf6 {[%emt 0:00:44]} 10. Nf3 {[%emt 0:00:30]} Nxg4 {[%emt 0:01:13]} 11. h5 {[%emt 0:00:21]} Qe6+ {[%emt 0:03:08]} 12. Ne5+ {[%emt 0:00:37]} Nxe5 {[%emt 0:00:11]} 13. fxe5 {[%emt 0:00:15]} Ke8 {[%emt 0:01:09]} 14. Nc3 {[%emt 0:05:08]} Na6 {[%emt 0:02:45]} 15. Rh2 {[%emt 0:18:31]} g5 {[%emt 0:10:24]} 16. hxg6 {[%emt 0:03:01]} Bxg6 {[%emt 0:02:05]} 17. Bh3 {[%emt 0:01:36]} Qf7 {[%emt 0:03:48]} 18. Rf2 {[%emt 0:02:51]} Qh7 {[%emt 0:01:45]} 19. Qg4 {[%emt 0:10:15]} Rd8 {[%emt 0:00:31]} 20. Be3 {[%emt 0:00:27]} h5 {[%emt 0:01:53]} 21. Qe2 {[%emt 0:00:42]} Nb4 {[%emt 0:01:38]} 22. Rc1 {[%emt 0:06:14]} Bh6 {[%emt 0:03:40]} 23. Nb5 {[%emt 0:10:16]} Na6 {[%emt 0:02:06]} 24. Nd6+ {[%emt 0:07:29]} exd6 {[%emt 0:02:28]} 25. exd6 {[%emt 0:00:17]} Bxe3 {[%emt 0:23:55]} 26. Qxe3+ {[%emt 0:00:07]} Be4 {[%emt 0:00:03]} 27. Qg5 {[%emt 0:00:55]} Rd7 {[%emt 0:00:10]} 28. Qe5+ {[%emt 0:00:57]} Kd8 {[%emt 0:00:23]} 29. Qf6+ {[%emt 0:00:02]} Ke8 {[%emt 0:00:10]} 30. Qe5+ {[%emt 0:00:25]} Kd8 {[%emt 0:00:01]} 1/2-1/2

[Event "12th New York International 2019"]
[Site "New York"]
[Date "2019.07.10"]
[Round "1.3"]
[White "Paragua, Mark"]
[Black "Tsay, Vincent"]
[Result "1-0"]
[ECO "A08"]
[WhiteElo "2503"]
[BlackElo "2167"]
[Annotator "RC"]
[PlyCount "121"]
[EventDate "2019.07.11"]
[EventType "swiss"]
[EventCountry "USA"]
[TimeControl "5400+30"]

1. e4 {[%emt 0:00:00]} e6 {[%emt 0:00:00]} 2. d3 {[%emt 0:00:00]} d5 {[%emt 0:00:00]} 3. Qe2 {[%emt 0:00:00]} Ne7 {[%emt 0:01:13]} 4. Nf3 {[%emt 0:00:22]} c5 {[%emt 0:00:13]} 5. g3 {[%emt 0:00:07]} Nbc6 {[%emt 0:00:16]} 6. Bg2 {[%emt 0:00:20]} g6 {[%emt 0:00:37]} 7. O-O {[%emt 0:00:09]} Bg7 {[%emt 0:00:06]} 8. c3 {[%emt 0:00:32]} O-O {[%emt 0:01:01]} 9. e5 {[%emt 0:00:18]} Nf5 {[%emt 0:04:12]} 10. Bg5 {[%emt 0:06:05]} f6 {[%emt 0:05:12]} 11. exf6 {[%emt 0:01:18]} Bxf6 {[%emt 0:00:08]} 12. Bxf6 {[%emt 0:00:14]} Qxf6 {[%emt 0:00:16]} 13. Re1 {[%emt 0:00:55]} Nd6 {[%emt 0:03:59]} 14. Nbd2 {[%emt 0:03:08]} Bd7 {[%emt 0:01:46]} 15. Nb3 {[%emt 0:03:25]} b6 {[%emt 0:02:44]} 16. d4 {[%emt 0:00:05]} cxd4 {[%emt 0:04:25]} 17. Nbxd4 {[%emt 0:00:35]} Nxd4 {[%emt 0:06:27]} 18. Nxd4 {[%emt 0:00:46]} Rae8 {[%emt 0:01:25]} 19. f4 {[%emt 0:00:52]} Kg7 {[%emt 0:04:25]} 20. a4 {[%emt 0:05:19]} Nc4 {[%emt 0:05:08]} 21. Nf3 {[%emt 0:01:17]} Bc8 {[%emt 0:05:32]} 22. b3 {[%emt 0:01:55]} Nd6 {[%emt 0:02:12]} 23. Ne5 {[%emt 0:01:45]} Re7 {[%emt 0:01:27]} 24. c4 {[%emt 0:03:08]} dxc4 {[%emt 0:09:54]} 25. Rad1 {[%emt 0:00:16]} Nf7 {[%emt 0:01:20]} 26. Qxc4 {[%emt 0:02:09]} Nxe5 {[%emt 0:03:09]} 27. Rxe5 {[%emt 0:00:27]} Qf7 {[%emt 0:00:40]} 28. h4 {[%emt 0:01:38]} Rc7 {[%emt 0:01:30]} 29. Qd4 {[%emt 0:01:11]} Kg8 {[%emt 0:00:25]} 30. Rde1 {[%emt 0:01:13]} Rc2 {[%emt 0:01:33]} 31. Be4 {[%emt 0:00:09]} Rc7 {[%emt 0:01:12]} 32. h5 {[%emt 0:05:18]} Qf6 {[%emt 0:01:50]} 33. hxg6 {[%emt 0:01:51]} hxg6 {[%emt 0:00:23]} 34. Qd1 {[%emt 0:02:29]} Rd8 {[%emt 0:01:34]} 35. Qg4 {[%emt 0:00:07]} Rg7 {[%emt 0:01:44]} 36. Rc1 {[%emt 0:05:40]} g5 {[%emt 0:13:26]} 37. Rxg5 {[%emt 0:00:53]} Rxg5 {[%emt 0:01:25]} 38. Qxg5+ {[%emt 0:00:08]} Qxg5 {[%emt 0:00:03]} 39. fxg5 {[%emt 0:00:06]} Ba6 {[%emt 0:00:18]} 40. Kf2 {[%emt 0:04:56]} Bd3 {[%emt 0:00:59]} 41. Bf3 {[%emt 0:01:25]} Bg6 {[%emt 0:01:43]} 42. Ke2 {[%emt 0:03:42]} Bd3+ {[%emt 0:02:49]} 43. Ke3 {[%emt 0:00:14]} Bg6 {[%emt 0:01:04]} 44. Rc3 {[%emt 0:00:40]} Rf8 {[%emt 0:08:27]} 45. g4 {[%emt 0:03:51]} Rd8 {[%emt 0:01:43]} 46. Be2 {[%emt 0:03:00]} Rd5 {[%emt 0:00:44]} 47. Rc8+ {[%emt 0:00:37]} Kf7 {[%emt 0:00:28]} 48. Rc7+ {[%emt 0:00:05]} Kf8 {[%emt 0:00:13]} 49. Rxa7 {[%emt 0:01:26]} Rxg5 {[%emt 0:01:16]} 50. Rb7 {[%emt 0:00:43]} Re5+ {[%emt 0:00:06]} 51. Kf2 {[%emt 0:00:21]} Bc2 {[%emt 0:00:33]} 52. Rxb6 {[%emt 0:00:16]} Kf7 {[%emt 0:00:31]} 53. Bc4 {[%emt 0:00:41]} Kf6 {[%emt 0:00:03]} 54. Kf3 {[%emt 0:00:39]} Re1 {[%emt 0:01:49]} 55. a5 {[%emt 0:00:30]} Kg5 {[%emt 0:00:30]} 56. Rxe6 {[%emt 0:00:43]} Ra1 {[%emt 0:00:42]} 57. Re5+ {[%emt 0:00:32]} Kf6 {[%emt 0:00:03]} 58. Kf4 {[%emt 0:00:22]} Ra3 {[%emt 0:00:31]} 59. g5+ {[%emt 0:00:16]} Kg6 {[%emt 0:00:11]} 60. Rb5 {[%emt 0:00:58]} Kg7 {[%emt 0:00:43]} 61. a6 {[%emt 0:00:30]} 1-0

[Event "12th New York International 2019"]
[Site "New York"]
[Date "2019.07.10"]
[Round "1.4"]
[White "Hallaeva, Bahar"]
[Black "Ostrovskiy, Aleksandr"]
[Result "0-1"]
[ECO "B18"]
[WhiteElo "2143"]
[BlackElo "2453"]
[Annotator "ChessBase"]
[PlyCount "58"]
[EventDate "2019.07.11"]
[EventType "swiss"]
[EventCountry "USA"]
[SourceTitle "playchess.com"]
[Source "ChessBase"]
[SourceQuality "1"]
[TimeControl "5400+30"]

1. e4 {[%emt 0:00:00]} c6 {[%emt 0:01:11]} 2. d4 {[%emt 0:00:00]} d5 {[%emt 0:00:05]} 3. Nd2 {[%emt 0:00:00]} dxe4 {[%emt 0:00:13]} 4. Nxe4 {[%emt 0:00:00]} Bf5 {[%emt 0:01:40]} 5. Ng3 {[%emt 0:00:00]} Bg6 {[%emt 0:00:03]} 6. Nh3 {[%emt 0:00:00]} e6 {[%emt 0:01:51]} 7. Nf4 {[%emt 0:00:00]} Qh4 {[%emt 0:09:17]} 8. c3 {[%emt 0:06:03]} Nd7 {[%emt 0:02:00]} 9. Be3 {[%emt 0:06:32]} Ngf6 {[%emt 0:17:02]} 10. Qd2 {[%emt 0:11:19]} Ne4 {[%emt 0:02:46]} 11. Nxg6 {[%emt 0:01:26]} hxg6 {[%emt 0:00:06]} 12. Nxe4 {[%emt 0:00:07]} Qxe4 {[%emt 0:00:05]} 13. O-O-O {[%emt 0:01:59]} b5 {[%emt 0:09:27]} 14. Be2 {[%emt 0:24:21]} Qxg2 {[%emt 0:03:54]} 15. Rhg1 {[%emt 0:01:02]} Qd5 {[%emt 0:03:02]} 16. Rg5 {[%emt 0:07:43]} Qxa2 {[%emt 0:01:35]} 17. Bf3 {[%emt 0:00:13]} Rc8 {[%emt 0:05:23]} 18. d5 {[%emt 0:18:30]} cxd5 {[%emt 0:00:26]} 19. Bxd5 {[%emt 0:04:30]} exd5 {[%emt 0:02:35]} 20. Rxd5 {[%emt 0:02:31]} Bb4 {[%emt 0:29:22]} 21. Bc5 {[%emt 0:02:23]} Bxc5 {[%emt 0:01:42]} 22. Re1+ {[%emt 0:01:24]} Kf8 {[%emt 0:03:01]} 23. Rxd7 {[%emt 0:00:02]} Kg8 {[%emt 0:03:30]} 24. Re5 {[%emt 0:11:06]} Bf8 {[%emt 0:00:54]} 25. Red5 {[%emt 0:00:46]} Rxh2 {[%emt 0:00:23]} 26. Rd8 {[%emt 0:00:24]} Rh1+ {[%emt 0:00:15]} 27. Kc2 {[%emt 0:00:08]} Rxd8 {[%emt 0:00:37]} 28. Rxd8 {[%emt 0:00:03]} Qa4+ {[%emt 0:00:06]} 29. Kd3 {[%emt 0:00:07]} Rh3+ {[%emt 0:00:40] Kd4} 0-1

[Event "12th New York International 2019"]
[Site "New York"]
[Date "2019.07.11"]
[Round "2.1"]
[White "Bonin, Jay"]
[Black "Paragua, Mark"]
[Result "0-1"]
[ECO "A45"]
[WhiteElo "2284"]
[BlackElo "2503"]
[Annotator "ChessBase"]
[PlyCount "86"]
[EventDate "2019.07.11"]
[EventType "swiss"]
[EventCountry "USA"]
[SourceTitle "playchess.com"]
[Source "ChessBase"]
[SourceQuality "1"]
[TimeControl "5400+30"]

1. d4 {[%emt 0:04:57]} Nf6 {[%emt 0:00:00]} 2. Bg5 {[%emt 0:00:20]} Ne4 {[%emt 0:01:30]} 3. Bf4 {[%emt 0:00:18]} c5 {[%emt 0:01:24]} 4. f3 {[%emt 0:00:11]} Qa5+ {[%emt 0:01:17]} 5. c3 {[%emt 0:00:28]} Nf6 {[%emt 0:00:05]} 6. d5 {[%emt 0:00:17]} d6 {[%emt 0:01:16]} 7. e4 {[%emt 0:00:59]} g6 {[%emt 0:01:13]} 8. Na3 {[%emt 0:01:03]} Bg7 {[%emt 0:05:02]} 9. Bb5+ {[%emt 0:10:19]} Nfd7 {[%emt 0:03:33]} 10. Ne2 {[%emt 0:03:40]} a6 {[%emt 0:05:54]} 11. Bxd7+ {[%emt 0:00:41]} Nxd7 {[%emt 0:01:39]} 12. Nc4 {[%emt 0:00:08]} Qc7 {[%emt 0:01:43]} 13. a4 {[%emt 0:00:18]} Rb8 {[%emt 0:03:27]} 14. a5 {[%emt 0:02:03]} b5 {[%emt 0:00:23]} 15. axb6 {[%emt 0:00:04]} Nxb6 {[%emt 0:00:06]} 16. Na5 {[%emt 0:01:44]} Bd7 {[%emt 0:00:31]} 17. O-O {[%emt 0:04:01]} O-O {[%emt 0:01:17]} 18. Ng3 {[%emt 0:12:02]} Bb5 {[%emt 0:06:30]} 19. Rf2 {[%emt 0:01:23]} c4 {[%emt 0:00:38]} 20. Ne2 {[%emt 0:09:15]} Bd7 {[%emt 0:07:44]} 21. Be3 {[%emt 0:02:20]} e5 {[%emt 0:05:57]} 22. dxe6 {[%emt 0:07:47]} fxe6 {[%emt 0:00:12]} 23. f4 {[%emt 0:01:22]} Nc8 {[%emt 0:15:06]} 24. b4 {[%emt 0:07:29]} cxb3 {[%emt 0:03:24]} 25. Nxb3 {[%emt 0:00:10]} Nb6 {[%emt 0:05:01]} 26. Bd4 {[%emt 0:13:02]} e5 {[%emt 0:01:49]} 27. fxe5 {[%emt 0:00:09]} dxe5 {[%emt 0:00:13]} 28. Bc5 {[%emt 0:02:45]} Rxf2 {[%emt 0:08:39]} 29. Bxf2 {[%emt 0:00:12]} Ba4 {[%emt 0:01:07]} 30. Qb1 {[%emt 0:01:40]} Bf8 {[%emt 0:05:21]} 31. Nd2 {[%emt 0:03:46]} Bb5 {[%emt 0:01:34]} 32. Qb3+ {[%emt 0:02:10]} Kh8 {[%emt 0:00:24]} 33. c4 {[%emt 0:02:21]} Nxc4 {[%emt 0:03:13]} 34. Qc3 {[%emt 0:00:21]} Rc8 {[%emt 0:00:45]} 35. Bg3 {[%emt 0:01:22]} Kg8 {[%emt 0:05:53]} 36. Nf3 {[%emt 0:02:32]} Qc5+ {[%emt 0:01:44]} 37. Kh1 {[%emt 0:01:17]} Ne3 {[%emt 0:01:21]} 38. Qxc5 {[%emt 0:00:29]} Bxc5 {[%emt 0:00:40]} 39. Nc3 {[%emt 0:00:39]} Bf1 {[%emt 0:00:53]} 40. Nd5 {[%emt 0:01:05]} Bxg2+ {[%emt 0:00:09]} 41. Kg1 {[%emt 0:00:02]} Bxf3 {[%emt 0:00:19]} 42. Nf6+ {[%emt 0:00:22]} Kf7 {[%emt 0:01:07]} 43. Nd7 {[%emt 0:00:16]} Nc2+ {[%emt 0:00:21]} 0-1

[Event "12th New York International 2019"]
[Site "New York"]
[Date "2019.07.11"]
[Round "2.3"]
[White "Dominguez, Jose Manuel"]
[Black "Shen, Victor"]
[Result "0-1"]
[ECO "B40"]
[WhiteElo "2233"]
[BlackElo "2418"]
[Annotator "NA"]
[PlyCount "50"]
[EventDate "2019.07.11"]
[EventType "swiss"]
[EventCountry "USA"]
[SourceTitle "playchess.com"]
[Source "ChessBase"]
[SourceQuality "1"]
[TimeControl "5400+30"]

1. e4 {[%emt 0:21:34]} c5 {[%emt 0:00:00]} 2. Nf3 {[%emt 0:00:05]} e6 {[%emt 0:00:00]} 3. Be2 {[%emt 0:00:39]} Nc6 {[%emt 0:01:02]} 4. O-O {[%emt 0:00:12]} Nf6 {[%emt 0:02:19]} 5. d3 {[%emt 0:00:16]} d5 {[%emt 0:07:19]} 6. Nbd2 {[%emt 0:02:19]} Be7 {[%emt 0:07:53]} 7. Re1 {[%emt 0:00:03]} b6 {[%emt 0:06:27]} 8. c3 {[%emt 0:00:32]} Bb7 {[%emt 0:01:35]} 9. Bf1 {[%emt 0:00:15]} Qc7 {[%emt 0:00:53]} 10. a3 {[%emt 0:05:19]} O-O-O {[%emt 0:07:07]} 11. Qa4 {[%emt 0:15:55]} Rhg8 {[%emt 0:19:16]} 12. b4 {[%emt 0:02:09]} g5 {[%emt 0:02:39]} 13. bxc5 {[%emt 0:02:29]} bxc5 {[%emt 0:01:24]} 14. d4 {[%emt 0:30:13]} dxe4 {[%emt 0:14:52]} 15. Nxe4 {[%emt 0:04:47]} Nxe4 {[%emt 0:00:47]} 16. Rxe4 {[%emt 0:00:02]} g4 {[%emt 0:17:12]} 17. Ne5 {[%emt 0:00:03]} Nxe5 {[%emt 0:01:17]} 18. Rxe5 {[%emt 0:04:39]} Bd6 {[%emt 0:01:16]} 19. Rh5 {[%emt 0:00:12]} Qb6 {[%emt 0:03:14]} 20. Be3 {[%emt 0:02:41]} f5 {[%emt 0:00:34]} 21. Rxh7 {[%emt 0:01:22]} Rh8 {[%emt 0:01:34]} 22. Rxh8 {[%emt 0:02:51]} Rxh8 {[%emt 0:00:01]} 23. g3 {[%emt 0:00:48]} Qb2 {[%emt 0:01:14]} 24. dxc5 {[%emt 0:01:57]} Qxa1 {[%emt 0:01:32]} 25. cxd6 {[%emt 0:01:17]} Qxc3 {[%emt 0:00:02]} 0-1

[Event "12th New York International 2019"]
[Site "New York"]
[Date "2019.07.11"]
[Round "2.4"]
[White "Ostrovskiy, Aleksandr"]
[Black "Shen, Christopher"]
[Result "1/2-1/2"]
[ECO "B41"]
[WhiteElo "2453"]
[BlackElo "2283"]
[Annotator "ChessBase"]
[PlyCount "58"]
[EventDate "2019.07.11"]
[EventType "swiss"]
[EventCountry "USA"]
[SourceTitle "playchess.com"]
[Source "ChessBase"]
[SourceQuality "1"]
[TimeControl "5400+30"]

1. e4 {[%emt 0:03:14]} c5 {[%emt 0:00:00]} 2. Nf3 {[%emt 0:00:21]} e6 {[%emt 0:00:00]} 3. d4 {[%emt 0:01:04]} cxd4 {[%emt 0:00:00]} 4. Nxd4 {[%emt 0:00:04]} a6 {[%emt 0:00:12]} 5. c4 {[%emt 0:00:05]} Nf6 {[%emt 0:00:11]} 6. Nc3 {[%emt 0:00:05]} Qc7 {[%emt 0:00:09]} 7. Be2 {[%emt 0:02:24]} Bb4 {[%emt 0:00:21]} 8. Nc2 {[%emt 0:06:18]} Bxc3+ {[%emt 0:08:18]} 9. bxc3 {[%emt 0:00:40]} d6 {[%emt 0:04:14]} 10. f3 {[%emt 0:02:32]} Nbd7 {[%emt 0:03:23]} 11. O-O {[%emt 0:04:03]} O-O {[%emt 0:02:02]} 12. Bg5 {[%emt 0:15:47]} Qc5+ {[%emt 0:13:10]} 13. Be3 {[%emt 0:00:16]} Qc7 {[%emt 0:00:25]} 14. Qd2 {[%emt 0:00:44]} Ne5 {[%emt 0:02:14]} 15. Qd4 {[%emt 0:05:31]} Bd7 {[%emt 0:06:31]} 16. Bg5 {[%emt 0:20:27]} Ba4 {[%emt 0:13:24]} 17. Ne3 {[%emt 0:00:57]} Nc6 {[%emt 0:03:07]} 18. Qd2 {[%emt 0:00:48]} Nd7 {[%emt 0:00:20]} 19. Rab1 {[%emt 0:16:24]} Nc5 {[%emt 0:06:12]} 20. h4 {[%emt 0:00:30]} h6 {[%emt 0:06:18]} 21. Bf4 {[%emt 0:01:26]} Ne5 {[%emt 0:01:01]} 22. h5 {[%emt 0:01:02]} Rad8 {[%emt 0:02:53]} 23. g4 {[%emt 0:05:06]} Qe7 {[%emt 0:03:00]} 24. Rf2 {[%emt 0:04:11]} Bc6 {[%emt 0:02:17]} 25. Rbf1 {[%emt 0:02:18]} f6 {[%emt 0:05:37]} 26. Rd1 {[%emt 0:02:20]} Ba4 {[%emt 0:00:55]} 27. Rb1 {[%emt 0:00:16]} Bc6 {[%emt 0:00:10]} 28. Rd1 {[%emt 0:00:32]} Ba4 {[%emt 0:00:17]} 29. Rb1 {[%emt 0:00:03]} Bc6 {[%emt 0:00:05]} 1/2-1/2

[Event "12th New York International 2019"]
[Site "New York"]
[Date "2019.07.11"]
[Round "3.3"]
[White "Rozman, Levy"]
[Black "Tremblay, Rejean"]
[Result "0-1"]
[ECO "E04"]
[WhiteElo "2382"]
[BlackElo "2192"]
[Annotator "RC"]
[PlyCount "66"]
[EventDate "2019.07.11"]
[EventType "swiss"]
[EventCountry "USA"]
[SourceTitle "playchess.com"]
[Source "ChessBase"]
[SourceQuality "1"]
[TimeControl "5400+30"]

1. d4 {[%emt 0:00:51]} e6 {[%emt 0:00:25]} 2. c4 {[%emt 0:00:14]} Nf6 {[%emt 0:00:04]} 3. Nc3 {[%emt 0:00:08]} d5 {[%emt 0:00:14]} 4. Nf3 {[%emt 0:00:24]} c6 {[%emt 0:01:06]} 5. g3 {[%emt 0:02:50]} dxc4 {[%emt 0:00:33]} 6. Bg2 {[%emt 0:00:25]} b5 {[%emt 0:00:59]} 7. Ne5 {[%emt 0:03:06]} Qb6 {[%emt 0:01:19]} 8. O-O {[%emt 0:09:03]} Bb7 {[%emt 0:00:09]} 9. b3 {[%emt 0:04:12]} cxb3 {[%emt 0:00:14]} 10. Qxb3 {[%emt 0:10:07]} Be7 {[%emt 0:04:09]} 11. a4 {[%emt 0:00:00]} b4 {[%emt 0:05:11]} 12. Nc4 {[%emt 0:21:07]} Qd8 {[%emt 0:00:45]} 13. Rd1 {[%emt 0:08:42]} a5 {[%emt 0:01:36]} 14. Bg5 {[%emt 0:04:17]} O-O {[%emt 0:09:39]} 15. Bxf6 {[%emt 0:01:59]} gxf6 {[%emt 0:04:51]} 16. Ne4 {[%emt 0:01:41]} Na6 {[%emt 0:00:32]} 17. g4 {[%emt 0:11:04]} Kh8 {[%emt 0:06:41]} 18. Qh3 {[%emt 0:01:39]} Rg8 {[%emt 0:00:33]} 19. Ng3 {[%emt 0:03:41]} Bf8 {[%emt 0:05:00]} 20. e4 {[%emt 0:04:49]} Nc7 {[%emt 0:02:27]} 21. Qh5 {[%emt 0:01:07]} Qe8 {[%emt 0:16:59]} 22. e5 {[%emt 0:01:25]} Nd5 {[%emt 0:01:41]} 23. Be4 {[%emt 0:01:12]} Rg7 {[%emt 0:01:47]} 24. Bxd5 {[%emt 0:05:46]} cxd5 {[%emt 0:00:26]} 25. Ne3 {[%emt 0:01:27]} Qd8 {[%emt 0:03:35]} 26. Rac1 {[%emt 0:00:20]} fxe5 {[%emt 0:00:27]} 27. dxe5 {[%emt 0:00:07]} Rc8 {[%emt 0:00:57]} 28. g5 {[%emt 0:01:13]} Rxc1 {[%emt 0:04:25]} 29. Rxc1 {[%emt 0:00:03]} d4 {[%emt 0:00:35]} 30. Rd1 {[%emt 0:00:07]} Qb6 {[%emt 0:00:45]} 31. Ng4 {[%emt 0:01:35]} Qc6 {[%emt 0:01:07]} 32. Kf1 {[%emt 0:00:04]} Qg2+ {[%emt 0:06:59]} 33. Ke1 {[%emt 0:00:03]} b3 {[%emt 0:01:21]} 0-1

[Event "12th New York International 2019"]
[Site "New York"]
[Date "2019.07.12"]
[Round "4.1"]
[White "Tremblay, Rejean"]
[Black "Rohde, Michael"]
[Result "0-1"]
[ECO "E39"]
[WhiteElo "2192"]
[BlackElo "2332"]
[Annotator "NA"]
[PlyCount "70"]
[EventDate "2019.07.11"]
[EventType "swiss"]
[EventCountry "USA"]
[SourceTitle "playchess.com"]
[Source "ChessBase"]
[SourceQuality "1"]
[TimeControl "5400+30"]

1. d4 {[%emt 0:03:14]} Nf6 {[%emt 0:00:00]} 2. c4 {[%emt 0:00:13]} e6 {[%emt 0:02:20]} 3. Nc3 {[%emt 0:00:10]} Bb4 {[%emt 0:00:13]} 4. Qc2 {[%emt 0:00:06]} c5 {[%emt 0:00:54]} 5. dxc5 {[%emt 0:00:07]} O-O {[%emt 0:00:14]} 6. Nf3 {[%emt 0:00:05]} Na6 {[%emt 0:02:10]} 7. g3 {[%emt 0:00:12]} Nxc5 {[%emt 0:00:16]} 8. Bg2 {[%emt 0:00:05]} b6 {[%emt 0:02:10]} 9. O-O {[%emt 0:00:08]} Bb7 {[%emt 0:10:50]} 10. Nb5 {[%emt 0:11:56]} Be4 {[%emt 0:00:00]} 11. Qd1 {[%emt 0:00:09]} Nb7 {[%emt 0:00:00]} 12. a3 {[%emt 0:05:35]} Be7 {[%emt 0:00:00]} 13. Nc3 {[%emt 0:00:09]} Bc6 {[%emt 0:00:00]} 14. Qc2 {[%emt 0:24:04]} Rc8 {[%emt 0:12:27]} 15. b3 {[%emt 0:00:00]} b5 {[%emt 0:02:50]} 16. cxb5 {[%emt 0:04:07]} Bxb5 {[%emt 0:00:50]} 17. Bb2 {[%emt 0:00:00]} d5 {[%emt 0:04:03]} 18. Qd1 {[%emt 0:00:00]} Ba6 {[%emt 0:01:08]} 19. Re1 {[%emt 0:14:32]} Nc5 {[%emt 0:13:16]} 20. b4 {[%emt 0:03:40]} Ncd7 {[%emt 0:07:53]} 21. Qa4 {[%emt 0:15:30]} Qb6 {[%emt 0:08:19]} 22. Rac1 {[%emt 0:13:04]} Bc4 {[%emt 0:08:03]} 23. Nd1 {[%emt 0:00:00]} Bb5 {[%emt 0:03:11]} 24. Qb3 {[%emt 0:00:00]} Rxc1 {[%emt 0:02:11]} 25. Bxc1 {[%emt 0:00:00]} Ne4 {[%emt 0:05:24]} 26. Bb2 {[%emt 0:00:00]} Bf6 {[%emt 0:12:55]} 27. Ne3 {[%emt 0:02:53]} Rc8 {[%emt 0:04:41]} 28. Bf1 {[%emt 0:02:41]} h5 {[%emt 0:00:00]} 29. Rc1 {[%emt 0:01:08]} Rxc1 {[%emt 0:00:00]} 30. Bxc1 {[%emt 0:00:00]} Nc3 {[%emt 0:00:00]} 31. Qc2 {[%emt 0:01:00]} d4 {[%emt 0:00:00]} 32. Ng2 {[%emt 0:00:32]} e5 {[%emt 0:00:00]} 33. e3 {[%emt 0:00:37]} Bxf1 {[%emt 0:00:00]} 34. Kxf1 {[%emt 0:00:01]} Qa6+ {[%emt 0:00:00]} 35. Kg1 {[%emt 0:00:49]} Qe2 {[%emt 0:00:00]} 0-1